Workbook

Sheet Inicio
O1: 6
D2: Indicadores Sistema Eléctrico CCAA | I2: www.ree.es
I3: Fecha de actualización: | K3: 2025-04-09
E8: =-B -> 

Sheet Cuadro mando
A3: Principales Indicadores Castilla-La Mancha 2024
B7: RED DE TRANSPORTE1
I45: (1) km líneas de la Red de Transporte

Sheet Red_de_transporte
A3: Red de transporte Castilla-La Mancha 2024
B7: RED DE TRANSPORTE1 | H7: VARIACIONES DE LA RdT
B11: AÑO 2024 | D11: =datos_RdT!J72 -> Castilla-La Mancha | E11: España | F11: % del total
B12: km circuitos 400 kV | D12: =datos_RdT!J73 -> 2612.814496 | E12: =datos_RdT!V73 -> 22215.66 | F12: =D12*100/E12 -> 11.7611383
B13: km circuitos 220 kV | D13: =datos_RdT!J74 -> 1528.303979 | E13: =datos_RdT!V74 -> 20371.62773 | F13: =D13*100/E13 -> 7.502120104
B14: km circuitos <220 kV | D14: =datos_RdT!J75 -> 0 | E14: =datos_RdT!V75 -> 3086.641 | F14: 0
B15: km circuitos | D15: =datos_RdT!J76 -> 4141.118476 | E15: =datos_RdT!V76 -> 45673.92873 | F15: 9.066700831
B16: Posiciones 400 kV | D16: =datos_RdT!J78 -> 134 | E16: =datos_RdT!V78 -> 1784 | F16: =D16*100/E16 -> 7.511210762
B17: Posiciones 220 kV | D17: =datos_RdT!J79 -> 155 | E17: =datos_RdT!V79 -> 3659 | F17: =D17*100/E17 -> 4.23613009
B18: Posiciones <220 kV | D18: =datos_RdT!J80 -> 0 | E18: =datos_RdT!V80 -> 1225 | F18: 0
B19: Posiciones | D19: =datos_RdT!J81 -> 289 | E19: =datos_RdT!V81 -> 6668 | F19: 4.334133173
B20: Transformadores2 (MVA) | D20: =datos_RdT!J83 -> 1800 | E20: =datos_RdT!V83 -> 94170 | F20: 1.911436763
B22: (1) Incluye los activos de la red de transporte del resto de empresas.
B23: (2) No contempla desfasadores
B26: EVOLUCIÓN DE LA RdT | H26: % km LÍNEAS C.A. vs. KILÓMETROS TOTALES

Sheet AVISO LEGAL

Sheet datos_RdT (hidden)
B1: 2019
B2: CCAA | C2: Andalucía | D2: Aragón | E2: Asturias | F2: Baleares | G2: C. Valenciana | H2: Canarias | I2: Cantabria | J2: Castilla-La Mancha | K2: Castilla y León | L2: Cataluña | M2: Ceuta | N2: Extremadura | O2: Galicia | P2: La Rioja | Q2: Madrid | R2: Melilla | S2: Murcia | T2: Navarra | U2: País Vasco | V2: TOTAL | W2: MÓVILES | X2: PENINSULAR | Y2: NO PENINSULAR
B3: km líneas 400 kV | C3: 2774.14959 | D3: 1447.051699 | E3: 529.5022043 | G3: 1073.171488 | I3: 240.5107043 | J3: 2612.814496 | K3: 4511.660432 | L3: 2237.079333 | N3: 2285.508447 | O3: 1345.968287 | P3: 114.9490595 | Q3: 992.6117087 | S3: 708.1121371 | T3: 175.9700702 | U3: 698.9563434 | V3: 21748.016 | X3: 21748.016 | Y3: 0
B4: km líneas 220 kV | C4: 3258.393495 | D4: 1876.547817 | E4: 431.5110202 | F4: 447.664 | G4: 1334.47326 | H4: 239.145 | I4: 324.1211061 | J4: 1524.543979 | K4: 3317.344074 | L4: 2534.918294 | N4: 854.9298674 | O4: 1328.496 | P4: 142.308 | Q4: 1186.937385 | S4: 123.86974 | T4: 318.8290202 | U4: 661.8999412 | V4: 19905.932 | X4: 19219.123 | Y4: 686.809
B5: km líneas <220 kV | F5: 1425.657 | H5: 1310.047 | L5: 39.44 | N5: 5.04 | O5: 12.3 | V5: 2792.484 | X5: 56.78 | Y5: 2735.704
B6: Total km líneas | C6: 6032.543084 | D6: 3323.599516 | E6: 961.0132245 | F6: 1873.321 | G6: 2407.644748 | H6: 1549.192 | I6: 564.6318104 | J6: 4137.358476 | K6: 7829.004506 | L6: 4811.437627 | M6: 0 | N6: 3145.478314 | O6: 2686.764287 | P6: 257.2570595 | Q6: 2179.549094 | R6: 0 | S6: 831.9818771 | T6: 494.7990904 | U6: 1360.856285 | V6: 44446.432 | W6: 0 | X6: 41023.919 | Y6: 3422.513
B7: =CONCATENATE("Δ" & $B$1 & "/" & $B$1-1) -> Δ2019/2018 | C7: 0.813959326 | D7: 0.5453518237 | E7: -2.220446049e-14 | F7: 1.045286206 | G7: 0.03980576203 | H7: 4.545442276 | I7: -9.992007222e-14 | J7: 3.330669074e-13 | K7: 0.5058281211 | L7: 0.01985247789 | N7: -0.5555082534 | O7: 0.1237215923 | P7: -1.998401444e-13 | Q7: 0.006882631107 | S7: 0 | T7: 4.440892099e-14 | U7: 0.1172694938 | V7: 0.4117914278 | X7: 0.2334346111 | Y7: 2.600143055
B8: Posiciones 400 kV | C8: 199 | D8: 101 | E8: 49 | G8: 184 | I8: 15 | J8: 115 | K8: 251 | L8: 150 | N8: 107 | O8: 73 | P8: 8 | Q8: 106 | S8: 71 | T8: 28 | U8: 80 | V8: 1537 | X8: 1537 | Y8: 0
B9: Posiciones 220 kV | C9: 465 | D9: 221 | E9: 45 | F9: 124 | G9: 324 | H9: 70 | I9: 50 | J9: 141 | K9: 254 | L9: 617 | N9: 90 | O9: 232 | P9: 30 | Q9: 530 | S9: 48 | T9: 50 | U9: 151 | V9: 3449 | W9: 7 | X9: 3255 | Y9: 194 | AB9: =3005+101 -> 3106
B10: Posiciones <220 kV | F10: 567 | H10: 509 | L10: 3 | N10: 0 | O10: 1 | V10: 1080 | X10: 4 | Y10: 1076 | AB10: =904+7 -> 911
B11: Total posiciones | C11: 664 | D11: 322 | E11: 94 | F11: 691 | G11: 508 | H11: 579 | I11: 65 | J11: 256 | K11: 505 | L11: 770 | M11: 0 | N11: 197 | O11: 306 | P11: 38 | Q11: 636 | R11: 0 | S11: 119 | T11: 78 | U11: 231 | V11: 6066 | W11: 7 | X11: 4796 | Y11: 1270 | AB11: =521+7 -> 528
B12: =CONCATENATE("Δ" & $B$1 & "/" & $B$1-1) -> Δ2019/2018 | C12: 2.786377709 | D12: 2.547770701 | E12: 0 | F12: 5.175038052 | G12: 5.613305613 | H12: 3.024911032 | I12: 0 | J12: 1.992031873 | K12: 3.06122449 | L12: 0.6535947712 | N12: 3.141361257 | O12: 4.081632653 | P12: 0 | Q12: 0.9523809524 | S12: 1.709401709 | T12: 0 | U12: 0 | V12: 2.622229741 | W12: 0 | X12: 2.216538789 | Y12: 4.183757178
B13: Transformadores | C13: 15020 | D13: 5056 | E13: 1300 | F13: 3838 | G13: 8950 | H13: 3470 | I13: 2100 | J13: 1200 | K13: 6131 | L13: 11500 | N13: 2800 | O13: 5700 | P13: 600 | Q13: 11100 | S13: 3450 | T13: 1600 | U13: 5100 | V13: 89815 | W13: 900 | X13: 82507 | Y13: 7308
B14: =CONCATENATE("Δ" & $B$1 & "/" & $B$1-1) -> Δ2019/2018 | C14: 4.160887656 | D14: 0 | E14: 0 | F14: 10.82876119 | G14: 0 | H14: 4.833836858 | I14: 0 | J14: 0 | K14: 0 | L14: 0 | N14: 0 | O14: 0 | P14: 0 | Q14: -10.26677445 | S14: 0 | T14: 0 | U14: 2 | V14: -0.03895381191 | W14: 0 | X14: -0.6861104758 | Y14: 7.899010778
B15: 2020
B16: CCAA | C16: Andalucía | D16: Aragón | E16: Asturias | F16: Baleares | G16: C. Valenciana | H16: Canarias | I16: Cantabria | J16: Castilla-La Mancha | K16: Castilla y León | L16: Cataluña | M16: Ceuta | N16: Extremadura | O16: Galicia | P16: La Rioja | Q16: Madrid | R16: Melilla | S16: Murcia | T16: Navarra | U16: País Vasco | V16: TOTAL | W16: MÓVILES | X16: PENINSULAR | Y16: NO PENINSULAR
B17: km líneas 400 kV | C17: 2774.14959 | D17: 1447.051699 | E17: 539.0682043 | F17: 0 | G17: 1073.171488 | I17: 240.5107043 | J17: 2612.814496 | K17: 4511.660432 | L17: 2237.079333 | N17: 2291.070447 | O17: 1346.726287 | P17: 114.9490595 | Q17: 992.6117087 | S17: 708.1121371 | T17: 175.9700702 | U17: 698.9563434 | V17: =SUM(C17:U17) -> 21763.902 | X17: =V17-Y17 -> 21763.902 | Y17: =F17+H17 -> 0
B18: km líneas 220 kV | C18: 3258.615495 | D18: 1885.140817 | E18: 432.2110202 | F18: 447.664 | G18: 1334.47326 | H18: 239.145 | I18: 324.1211061 | J18: 1528.303979 | K18: 3317.344074 | L18: 2546.688294 | N18: 859.3478674 | O18: 1332.484 | P18: 142.308 | Q18: 1186.993385 | S18: 123.86974 | T18: 318.8290202 | U18: 661.8999412 | V18: =SUM(C18:U18) -> 19939.439 | X18: =V18-Y18 -> 19252.63 | Y18: =F18+H18 -> 686.809
B19: km líneas <220 kV | F19: 1481.116 | H19: 1321.842 | L19: 39.44 | N19: 5.04 | O19: 12.3 | V19: =SUM(C19:U19) -> 2859.738 | X19: 56.78 | Y19: 2802.958
B20: Total km líneas | C20: =SUM(C17:C19) -> 6032.765084 | D20: =SUM(D17:D19) -> 3332.192516 | E20: 971.2792245 | F20: 1928.78 | G20: 2407.644748 | H20: 1560.987 | I20: 564.6318104 | J20: 4141.118476 | K20: 7829.004506 | L20: 4823.207627 | M20: 0 | N20: 3155.458314 | O20: 2691.510287 | P20: 257.2570595 | Q20: 2179.605094 | R20: 0 | S20: 831.9818771 | T20: 494.7990904 | U20: 1360.856285 | V20: =SUM(V17:V19) -> 44563.079 | W20: =SUM(W17:W19) -> 0 | X20: 41073.312 | Y20: 3489.767
B21: =CONCATENATE("Δ" & $B$15 & "/" & $B$15-1) -> Δ2020/2019 | C21: =(C20/C6-1)*100 -> 0.003680040024 | D21: =(D20/D6-1)*100 -> 0.2585449889 | E21: 1.068247527 | F21: 2.96046433 | G21: 0 | H21: 0.761364634 | I21: 0 | J21: 0.09087924148 | K21: 0 | L21: 0.2446254303 | N21: =(N20/N6-1)*100 -> 0.3172808394 | O21: 0.1766437057 | P21: 0 | Q21: 0.002569338775 | S21: =(S20/S6-1)*100 -> 0 | T21: 0 | U21: 0 | V21: 0.2624440135 | X21: =(X20/X6-1)*100 -> 0.1204004912 | Y21: 1.96504732
B22: Posiciones 400 kV | C22: =C8-5 -> 194 | D22: =D8 -> 101 | E22: =E8+6 -> 55 | G22: =G8-3 -> 181 | I22: =I8 -> 15 | J22: =J8+3 -> 118 | K22: =K8-4 -> 247 | L22: =L8-3 -> 147 | N22: =N8+6 -> 113 | O22: =O8-1 -> 72 | P22: =P8 -> 8 | Q22: =Q8+3 -> 109 | S22: =S8+3 -> 74 | T22: =T8+2 -> 30 | U22: =U8+4 -> 84 | V22: =SUM(C22:U22)+W22 -> 1548 | X22: =V22-Y22 -> 1548 | Y22: =F22+H22 -> 0
B23: Posiciones 220 kV | C23: =C9-5 -> 460 | D23: =D9-1 -> 220 | E23: =E9-1 -> 44 | F23: 125 | G23: =G9-1 -> 323 | H23: 75 | I23: =I9-2 -> 48 | J23: =J9+1 -> 142 | K23: =K9-3 -> 251 | L23: =L9-16 -> 601 | N23: =N9-3 -> 87 | O23: =O9-10 -> 222 | P23: =P9-1 -> 29 | Q23: =Q9+21 -> 551 | S23: =S9-4 -> 44 | T23: =T9 -> 50 | U23: =U9-2 -> 149 | V23: =SUM(C23:U23)+W23 -> 3428 | W23: 7 | X23: =V23-Y23 -> 3228 | Y23: =F23+H23 -> 200
B24: Posiciones <220 kV | F24: 559 | H24: 546 | L24: 3 | N24: 0 | O24: 1 | V24: 1109 | X24: =V24-Y24 -> 4 | Y24: =F24+H24 -> 1105
B25: Total posiciones | C25: =SUM(C22:C24) -> 654 | D25: 321 | E25: 99 | F25: =SUM(F22:F24) -> 684 | G25: =SUM(G22:G24) -> 504 | H25: 621 | I25: 63 | J25: 260 | K25: 498 | L25: 751 | M25: 0 | N25: 200 | O25: 295 | P25: 37 | Q25: 660 | R25: 0 | S25: 118 | T25: 80 | U25: 233 | V25: =SUM(V22:V24) -> 6085 | W25: 7 | X25: =SUM(X22:X24) -> 4780 | Y25: 1305
B26: =CONCATENATE("Δ" & $B$15 & "/" & $B$15-1) -> Δ2020/2019 | C26: =(C25/C11-1)*100 -> -1.506024096 | D26: =(D25/D11-1)*100 -> -0.3105590062 | E26: 5.319148936 | F26: -1.013024602 | G26: -0.7874015748 | H26: 7.25388601 | I26: -3.076923077 | J26: 1.5625 | K26: -1.386138614 | L26: -2.467532468 | N26: =(N25/N11-1)*100 -> 1.52284264 | O26: -3.594771242 | P26: -2.631578947 | Q26: 3.773584906 | S26: =(S25/S11-1)*100 -> -0.8403361345 | T26: 2.564102564 | U26: 0.8658008658 | V26: 0.3132212331 | W26: 0 | X26: -0.3336113428 | Y26: 2.755905512
B27: Transformadores | C27: 15020 | D27: 5056 | E27: 1300 | F27: 3838 | G27: 8950 | H27: 3630 | I27: 2100 | J27: 1200 | K27: 6131 | L27: 11500 | N27: 2800 | O27: 5700 | P27: 600 | Q27: 11100 | S27: 3450 | T27: 1600 | U27: 5100 | V27: =SUM(C27:U27)+W27 -> 89975 | W27: 900 | X27: =V27-Y27 -> 82507 | Y27: =F27+H27 -> 7468
B28: =CONCATENATE("Δ" & $B$15 & "/" & $B$15-1) -> Δ2020/2019 | C28: =(C27/C13-1)*100 -> 0 | D28: =(D27/D13-1)*100 -> 0 | E28: 0 | F28: 0 | G28: 0 | H28: 4.610951009 | I28: 0 | J28: 0 | K28: 0 | L28: 0 | N28: =(N27/N13-1)*100 -> 0 | O28: 0 | P28: 0 | Q28: 0 | S28: =(S27/S13-1)*100 -> 0 | T28: 0 | U28: 0 | V28: 0.1781439626 | W28: 0 | X28: 0 | Y28: 2.1893815
B29: 2021
B30: CCAA | C30: Andalucía | D30: Aragón | E30: Asturias | F30: Baleares | G30: C. Valenciana | H30: Canarias | I30: Cantabria | J30: Castilla-La Mancha | K30: Castilla y León | L30: Cataluña | M30: Ceuta | N30: Extremadura | O30: Galicia | P30: La Rioja | Q30: Madrid | R30: Melilla | S30: Murcia | T30: Navarra | U30: País Vasco | V30: TOTAL | W30: MÓVILES | X30: PENINSULAR | Y30: NO PENINSULAR
B31: km líneas 400 kV | C31: 2774.14959 | D31: 1448.037699 | E31: 539.0682043 | G31: 1074.437488 | I31: 240.5107043 | J31: 2612.814496 | K31: 4511.660432 | L31: 2237.079333 | N31: 2293.298447 | O31: 1346.726287 | P31: 114.9490595 | Q31: 992.6117087 | S31: 708.1121371 | T31: 175.9700702 | U31: 698.9563434 | V31: =SUM(C31:U31) -> 21768.382 | X31: =V31-Y31 -> 21768.382 | Y31: =F31+H31 -> 0
B32: km líneas 220 kV | C32: 3266.267495 | D32: 1904.367817 | E32: 432.5490202 | F32: 447.664 | G32: 1350.38626 | H32: 240.249 | I32: 324.1211061 | J32: 1528.303979 | K32: 3348.948074 | L32: 2546.688294 | N32: 909.1758674 | O32: 1388.335 | P32: 142.308 | Q32: 1186.993385 | S32: 123.86974 | T32: 318.8290202 | U32: 661.9799412 | V32: =SUM(C32:U32) -> 20121.036 | X32: =V32-Y32 -> 19433.123 | Y32: =F32+H32 -> 687.913
B33: km líneas <220 kV | F33: 1481.116 | G33: 0 | H33: 1337.996 | L33: 39.44 | N33: 8.05 | O33: 12.3 | V33: =SUM(C33:U33) -> 2878.902 | X33: 59.79 | Y33: 2819.112
B34: Total km líneas | C34: =SUM(C31:C33) -> 6040.417084 | D34: =SUM(D31:D33) -> 3352.405516 | E34: 971.6172245 | F34: 1928.78 | G34: 2424.823748 | H34: 1578.245 | I34: 564.6318104 | J34: 4141.118476 | K34: 7860.608506 | L34: 4823.207627 | M34: 0 | N34: 3210.524314 | O34: 2747.361287 | P34: 257.2570595 | Q34: 2179.605094 | R34: 0 | S34: 831.9818771 | T34: 494.7990904 | U34: 1360.936285 | V34: =SUM(V31:V33) -> 44768.32 | X34: =SUM(X31:X33) -> 41261.295 | Y34: 3507.025
B35: =CONCATENATE("Δ" & $B$29 & "/" & $B$29-1) -> Δ2021/2020 | C35: 0.2666036915 | D35: 0.5306457033 | E35: 0 | F35: 2.44402976 | G35: 1.090233197 | H35: 8.534318437 | I35: 0 | J35: 0 | K35: 0.3878701014 | L35: 0.105236572 | N35: 0 | O35: 0 | P35: 0 | Q35: 0 | S35: 0 | T35: 0 | U35: 0 | V35: =(V34/V20-1)*100 -> 0.4605628799 | X35: =(X34/X20-1)*100 -> 0.4576767513 | Y35: 0.4945315833
B36: Posiciones 400 kV | C36: 192 | D36: 108 | E36: 61 | G36: 184 | I36: 15 | J36: 125 | K36: 243 | L36: 144 | N36: 130 | O36: 74 | P36: 8 | Q36: 112 | S36: 79 | T36: 32 | U36: 94 | V36: =SUM(C36:U36)+W36 -> 1601 | X36: =V36-Y36 -> 1601 | Y36: =F36+H36 -> 0
B37: Posiciones 220 kV | C37: 468 | D37: 220 | E37: 43 | F37: 125 | G37: 322 | H37: 81 | I37: 47 | J37: 145 | K37: 249 | L37: 590 | N37: 99 | O37: 224 | P37: 28 | Q37: 572 | S37: 40 | T37: 51 | U37: 147 | V37: =SUM(C37:U37)+W37 -> 3458 | W37: 7 | X37: =V37-Y37 -> 3252 | Y37: =F37+H37 -> 206
B38: Posiciones <220 kV | F38: 568 | H38: 570 | L38: 3 | N38: 2 | O38: 1 | V38: =SUM(C38:U38)+W38 -> 1144 | X38: =V38-Y38 -> 6 | Y38: =F38+H38 -> 1138
B39: Total posiciones | C39: =SUM(C36:C38) -> 660 | D39: =SUM(D36:D38) -> 328 | E39: 104 | F39: =SUM(F36:F38) -> 693 | G39: =SUM(G36:G38) -> 506 | H39: 651 | I39: 62 | J39: 270 | K39: 492 | L39: 737 | M39: 0 | N39: 231 | O39: 299 | P39: 36 | Q39: 684 | R39: 0 | S39: 119 | T39: 83 | U39: 241 | V39: =SUM(V36:V38) -> 6203 | W39: 7 | X39: =SUM(X36:X38) -> 4859 | Y39: 1344
B40: =CONCATENATE("Δ" & $B$29 & "/" & $B$29-1) -> Δ2021/2020 | C40: =(C39/C25-1)*100 -> 0.9174311927 | D40: =(D39/D25-1)*100 -> 2.180685358 | E40: 5.050505051 | F40: 1.315789474 | G40: 0.3968253968 | H40: 4.830917874 | I40: -1.587301587 | J40: 3.846153846 | K40: -1.204819277 | L40: -1.864181092 | N40: =(N39/N25-1)*100 -> 15.5 | O40: 1.355932203 | P40: -2.702702703 | Q40: 3.636363636 | S40: =(S39/S25-1)*100 -> 0.8474576271 | T40: 3.75 | U40: 3.433476395 | V40: 1.939194741 | W40: 0 | X40: 0 | Y40: 0
B41: Transformadores | C41: 15020 | D41: 5056 | E41: 1300 | F41: 3838 | G41: 8950 | H41: 3880 | I41: 2100 | J41: 1200 | K41: 6131 | L41: 11500 | N41: 3025 | O41: 5700 | P41: 600 | Q41: 11100 | S41: 3450 | T41: 1600 | U41: 5100 | V41: =SUM(C41:U41)+W41 -> 90450 | W41: 900 | X41: =V41-Y41 -> 82732 | Y41: =F41+H41 -> 7718
B42: =CONCATENATE("Δ" & $B$29 & "/" & $B$29-1) -> Δ2021/2020 | C42: =(C41/C27-1)*100 -> 0 | D42: =(D41/D27-1)*100 -> 0 | E42: 0 | F42: 0 | G42: 0 | H42: 6.887052342 | I42: 0 | J42: 0 | K42: 0 | L42: 0 | N42: =(N41/N27-1)*100 -> 8.035714286 | O42: 0 | P42: 0 | Q42: 0 | S42: =(S41/S27-1)*100 -> 0 | T42: 0 | U42: 0 | V42: 0.5279244235 | W42: 0 | X42: 0.2727041342 | Y42: 3.347616497
B43: 2022 | V43: =V39-V25 -> 118
B44: CCAA | C44: Andalucía | D44: Aragón | E44: Asturias | F44: Baleares | G44: C. Valenciana | H44: Canarias | I44: Cantabria | J44: Castilla-La Mancha | K44: Castilla y León | L44: Cataluña | M44: Ceuta | N44: Extremadura | O44: Galicia | P44: La Rioja | Q44: Madrid | R44: Melilla | S44: Murcia | T44: Navarra | U44: País Vasco | V44: TOTAL | W44: MÓVILES | X44: PENINSULAR | Y44: NO PENINSULAR
B45: km líneas 400 kV | C45: 3019.04959 | D45: 1448.037699 | E45: 539.0682043 | G45: 1074.437488 | I45: 240.5107043 | J45: 2612.814496 | K45: 4511.660432 | L45: 2237.079333 | N45: 2293.298447 | O45: 1346.726287 | P45: 114.9490595 | Q45: 992.6117087 | S45: 708.1121371 | T45: 175.9700702 | U45: 698.9563434 | V45: =SUM(C45:U45) -> 22013.282 | X45: =V45-Y45 -> 22013.282 | Y45: =F45+H45 -> 0
B46: km líneas 220 kV | C46: 3268.964495 | D46: 1904.367817 | E46: 432.5490202 | F46: 447.664 | G46: 1360.31226 | H46: 259.529 | I46: 332.2971061 | J46: 1528.303979 | K46: 3349.098074 | L46: 2546.688294 | N46: 909.1758674 | O46: 1388.335 | P46: 142.308 | Q46: 1186.993385 | S46: 123.86974 | T46: 318.8290202 | U46: 661.9799412 | V46: =SUM(C46:U46) -> 20161.265 | X46: =V46-Y46 -> 19454.072 | Y46: =F46+H46 -> 707.193
B47: km líneas <220 kV | F47: 1482.064 | H47: 1349.667 | L47: 39.44 | N47: 8.05 | O47: 12.3 | V47: 2891.521 | X47: 59.79 | Y47: 2831.731
B48: Total km líneas | C48: =SUM(C45:C47) -> 6288.014084 | D48: 3352.405516 | E48: 971.6172245 | F48: 1929.728 | G48: 2434.749748 | H48: 1609.196 | I48: 572.8078104 | J48: 4141.118476 | K48: 7860.758506 | L48: 4823.207627 | M48: 0 | N48: 3210.524314 | O48: 2747.361287 | P48: 257.2570595 | Q48: 2179.605094 | R48: 0 | S48: 831.9818771 | T48: 494.7990904 | U48: 1360.936285 | V48: =SUM(V45:V47) -> 45066.068 | X48: =SUM(X45:X47) -> 41527.144 | Y48: 3538.924
B49: =CONCATENATE("Δ" & $B$43 & "/" & $B$43-1) -> Δ2022/2021 | C49: =(C48/C34-1)*100 -> 4.099005028 | D49: =(D48/D34-1)*100 -> 0 | E49: 0 | F49: 0.04915024005 | G49: 0.4093493396 | H49: 1.961102364 | I49: 1.448023269 | J49: 0 | K49: 0.001908249214 | L49: 0 | N49: =(N48/N34-1)*100 -> 0 | O49: 0 | P49: 0 | Q49: 0 | S49: =(S48/S34-1)*100 -> 0 | T49: 0 | U49: 0 | V49: 0.3352935099 | X49: 0.3386428746 | Y49: 0.2921503343
B50: Posiciones 400 kV | C50: =C36+13 -> 205 | D50: =D36+4 -> 112 | E50: =E36 -> 61 | G50: =G36+2 -> 186 | I50: =I36 -> 15 | J50: =J36+5 -> 130 | K50: =K36+4 -> 247 | L50: =L36 -> 144 | N50: =N36+4 -> 134 | O50: =O36 -> 74 | P50: 8 | Q50: =Q36+3 -> 115 | S50: =S36+2 -> 81 | T50: =T36 -> 32 | U50: 94 | V50: =SUM(C50:U50)+W50 -> 1638 | X50: =V50-Y50 -> 1638 | Y50: =F50+H50 -> 0
B51: Posiciones 220 kV | C51: =C37+7 -> 475 | D51: =D37+2 -> 222 | E51: 43 | F51: 125 | G51: =G37+9 -> 331 | H51: 95 | I51: =I37+3 -> 50 | J51: =J37+4 -> 149 | K51: =K37+2 -> 251 | L51: =L37+1 -> 591 | N51: =N37+3 -> 102 | O51: =O37+1 -> 225 | P51: =P37 -> 28 | Q51: 572 | S51: =S37 -> 40 | T51: 51 | U51: 147 | V51: =SUM(C51:U51)+W51 -> 3504 | W51: 7 | X51: =V51-Y51 -> 3284 | Y51: =F51+H51 -> 220
B52: Posiciones <220 kV | F52: 576 | H52: 588 | L52: 3 | N52: 2 | O52: 1 | V52: =SUM(C52:U52)+W52 -> 1170 | X52: =V52-Y52 -> 6 | Y52: =F52+H52 -> 1164
B53: Total posiciones | C53: =SUM(C50:C52) -> 680 | D53: =SUM(D50:D52) -> 334 | E53: 104 | F53: 701 | G53: 517 | H53: 683 | I53: 65 | J53: 279 | K53: 498 | L53: 738 | M53: 0 | N53: 238 | O53: 300 | P53: 36 | Q53: 687 | R53: 0 | S53: 121 | T53: 83 | U53: 241 | V53: =SUM(V50:V52) -> 6312 | W53: =SUM(W50:W52) -> 7 | X53: =SUM(X50:X52) -> 4928 | Y53: 1384
B54: =CONCATENATE("Δ" & $B$43 & "/" & $B$43-1) -> Δ2022/2021 | C54: =(C53/C39-1)*100 -> 3.03030303 | D54: =(D53/D39-1)*100 -> 1.829268293 | E54: 0 | F54: 1.154401154 | G54: 2.173913043 | H54: 4.915514593 | I54: 4.838709677 | J54: 3.333333333 | K54: 1.219512195 | L54: 0.1356852103 | N54: =(N53/N39-1)*100 -> 3.03030303 | O54: 0.3344481605 | P54: 0 | Q54: 0.4385964912 | S54: =(S53/S39-1)*100 -> 1.680672269 | T54: 0 | U54: 0 | V54: 1.757214251 | W54: 0 | X54: 1.420045277 | Y54: 2.976190476
B55: Transformadores | C55: 15020 | D55: 5056 | E55: 1300 | F55: 3838 | G55: 8950 | H55: 4005 | I55: 2100 | J55: 1800 | K55: 6131 | L55: 11500 | N55: 3025 | O55: 5700 | P55: 600 | Q55: 11100 | S55: 3450 | T55: 1600 | U55: 5100 | V55: =SUM(C55:U55)+W55 -> 91175 | W55: 900 | X55: =V55-Y55 -> 83332 | Y55: =F55+H55 -> 7843
B56: =CONCATENATE("Δ" & $B$43 & "/" & $B$43-1) -> Δ2022/2021 | C56: =(C55/C41-1)*100 -> 0 | D56: =(D55/D41-1)*100 -> 0 | E56: 0 | F56: 0 | G56: 0 | H56: 3.221649485 | I56: 0 | J56: 50 | K56: 0 | L56: 0 | N56: =(N55/N41-1)*100 -> 0 | O56: 0 | P56: 0 | Q56: 0 | S56: =(S55/S41-1)*100 -> 0 | T56: 0 | U56: 0 | V56: 0.8015478165 | W56: 0 | X56: 0.7252332834 | Y56: 1.619590568
B57: 2023 | C57: =C53-C39 -> 20 | D57: =D53-D39 -> 6 | E57: 0 | F57: 8 | G57: 11 | H57: 32 | I57: 3 | J57: 9 | K57: 6 | L57: 1 | M57: 0 | N57: 7 | O57: 1 | P57: 0 | Q57: 3 | R57: 0 | S57: 2 | T57: 0 | U57: 0 | V57: 109
B58: CCAA | C58: Andalucía | D58: Aragón | E58: Asturias | F58: Baleares | G58: C. Valenciana | H58: Canarias | I58: Cantabria | J58: Castilla-La Mancha | K58: Castilla y León | L58: Cataluña | M58: Ceuta | N58: Extremadura | O58: Galicia | P58: La Rioja | Q58: Madrid | R58: Melilla | S58: Murcia | T58: Navarra | U58: País Vasco | V58: TOTAL | W58: MÓVILES | X58: PENINSULAR | Y58: NO PENINSULAR
B59: km líneas 400 kV | C59: 3021.04359 | D59: 1448.037699 | E59: 539.0682043 | G59: 1114.437488 | I59: 240.5107043 | J59: 2612.814496 | K59: 4511.660432 | L59: 2237.079333 | N59: 2293.298447 | O59: 1346.726287 | P59: 114.9490595 | Q59: 994.4537087 | S59: 708.1121371 | T59: 175.9700702 | U59: 698.9563434 | V59: =SUM(C59:U59) -> 22057.118 | X59: =V59-Y59 -> 22057.118 | Y59: =F59+H59 -> 0
B60: km líneas 220 kV | C60: 3276.009495 | D60: 1904.367817 | E60: 399.7490202 | F60: 447.664 | G60: 1360.31226 | H60: 265.223 | I60: 332.4041061 | J60: 1528.303979 | K60: 3349.098074 | L60: 2561.518294 | N60: 909.1758674 | O60: 1389.285 | P60: 142.308 | Q60: 1186.993385 | S60: 123.86974 | T60: 318.8290202 | U60: 661.9799412 | V60: =SUM(C60:U60) -> 20157.091 | X60: =V60-Y60 -> 19444.204 | Y60: =F60+H60 -> 712.887
B61: km líneas <220 kV | F61: 1556.801 | H61: 1356.436 | L61: 39.44 | N61: 8.05 | O61: 12.3 | V61: =SUM(C61:U61) -> 2973.027 | X61: 59.79 | Y61: 2913.237
B62: Total km líneas | C62: =SUM(C59:C61) -> 6297.053084 | D62: 3352.405516 | E62: 938.8172245 | F62: 2004.465 | G62: 2474.749748 | H62: 1621.659 | I62: 572.9148104 | J62: 4141.118476 | K62: 7860.758506 | L62: 4838.037627 | M62: 0 | N62: 3210.524314 | O62: 2748.311287 | P62: 257.2570595 | Q62: 2181.447094 | R62: 0 | S62: 831.9818771 | T62: 494.7990904 | U62: 1360.936285 | V62: 45187.236 | X62: =SUM(X59:X61) -> 41561.112 | Y62: 3626.124
B63: =CONCATENATE("Δ" & $B$57 & "/" & $B$57-1) -> Δ2023/2022 | C63: =(C62/C48-1)*100 -> 0.143749678 | D63: =(D62/D48-1)*100 -> 0 | E63: -3.375814999 | F63: 3.872929242 | G63: 1.642879315 | H63: 0.7744861409 | I63: 0.01867991289 | J63: 0 | K63: 0 | L63: 0.3074717314 | N63: =(N62/N48-1)*100 -> 0 | O63: 0.03457863385 | P63: 0 | Q63: 0.08451072192 | S63: =(S62/S48-1)*100 -> 0 | T63: -1.110223025e-14 | U63: 0 | V63: 0.268867477 | X63: =(X62/X48-1)*100 -> 0.08179710119 | Y63: 2.464025789
B64: Posiciones 400 kV | C64: =C50+19 -> 224 | D64: =D50+12 -> 124 | E64: =E50 -> 61 | G64: =G50+11 -> 197 | I64: =I50 -> 15 | J64: =J50+3 -> 133 | K64: =K50+6 -> 253 | L64: =L50+2 -> 146 | N64: =N50 -> 134 | O64: =O50+2 -> 76 | P64: =P50 -> 8 | Q64: =Q50+6 -> 121 | S64: =S50+7 -> 88 | T64: =T50+2 -> 34 | U64: =U50 -> 94 | V64: =SUM(C64:U64)+W64 -> 1708 | X64: =V64-F64-H64-M64-R64 -> 1708 | Y64: =F64+H64+M64+R64 -> 0
B65: Posiciones 220 kV | C65: =C51+10 -> 485 | D65: =D51+2 -> 224 | E65: 43 | F65: 129 | G65: =G51+1 -> 332 | H65: 95 | I65: =I51+3 -> 53 | J65: =J51 -> 149 | K65: =K51+5 -> 256 | L65: =L51+6 -> 597 | N65: =N51+1 -> 103 | O65: =O51+6 -> 231 | P65: =P51+1 -> 29 | Q65: =Q51+6 -> 578 | S65: =S51+1 -> 41 | T65: =T51+4 -> 55 | U65: =U51+1 -> 148 | V65: =SUM(C65:U65)+W65 -> 3555 | W65: 7 | X65: =V65-F65-H65-M65-R65 -> 3331 | Y65: =F65+H65+M65+R65 -> 224
B66: Posiciones <220 kV | F66: 588 | H66: 598 | L66: 3 | N66: 2 | O66: 1 | V66: 1192 | X66: =V66-F66-H66-M66-R66 -> 6 | Y66: =F66+H66+M66+R66 -> 1186
B67: Total posiciones | C67: =SUM(C64:C66) -> 709 | D67: =SUM(D64:D66) -> 348 | E67: 104 | F67: 717 | G67: 529 | H67: 693 | I67: 68 | J67: 282 | K67: 509 | L67: 746 | M67: 0 | N67: 239 | O67: 308 | P67: 37 | Q67: 699 | R67: 0 | S67: 129 | T67: 89 | U67: 242 | V67: =SUM(V64:V66) -> 6455 | W67: =SUM(W64:W66) -> 7 | X67: =SUM(X64:X66) -> 5045 | Y67: 1410
B68: =CONCATENATE("Δ" & $B$57 & "/" & $B$57-1) -> Δ2023/2022 | C68: =(C67/C53-1)*100 -> 4.264705882 | D68: =(D67/D53-1)*100 -> 4.191616766 | E68: 0 | F68: 2.282453638 | G68: 2.321083172 | H68: 1.464128843 | I68: 4.615384615 | J68: 1.075268817 | K68: 2.208835341 | L68: 1.08401084 | N68: =(N67/N53-1)*100 -> 0.4201680672 | O68: 2.666666667 | P68: 2.777777778 | Q68: 1.746724891 | S68: =(S67/S53-1)*100 -> 6.611570248 | T68: 7.228915663 | U68: 0.4149377593 | V68: 2.265525982 | W68: 0 | X68: 2.374188312 | Y68: 1.878612717
B69: Transformadores | C69: 15020 | D69: 5056 | E69: 1300 | F69: 3838 | G69: 8950 | H69: 4165 | I69: 2100 | J69: 1800 | K69: 6131 | L69: 11500 | N69: 3025 | O69: 5700 | P69: 600 | Q69: 11700 | S69: 3450 | T69: 1600 | U69: 5100 | V69: =SUM(C69:U69)+W69 -> 91935 | W69: 900 | X69: =V69-F69-H69-M69-R69 -> 83932 | Y69: =F69+H69+M69+R69 -> 8003
B70: =CONCATENATE("Δ" & $B$57 & "/" & $B$57-1) -> Δ2023/2022 | C70: =(C69/C55-1)*100 -> 0 | D70: =(D69/D55-1)*100 -> 0 | E70: 0 | F70: 0 | G70: 0 | H70: 3.995006242 | I70: 0 | J70: 0 | K70: 0 | L70: 0 | N70: =(N69/N55-1)*100 -> 0 | O70: 0 | P70: 0 | Q70: 5.405405405 | S70: =(S69/S55-1)*100 -> 0 | T70: 0 | U70: 0 | V70: 0.8335618316 | W70: 0 | X70: 0.7200115202 | Y70: 2.040035701
B71: 2024
B72: CCAA | C72: Andalucía | D72: Aragón | E72: Asturias | F72: Baleares | G72: C. Valenciana | H72: Canarias | I72: Cantabria | J72: Castilla-La Mancha | K72: Castilla y León | L72: Cataluña | M72: Ceuta | N72: Extremadura | O72: Galicia | P72: La Rioja | Q72: Madrid | R72: Melilla | S72: Murcia | T72: Navarra | U72: País Vasco | V72: TOTAL | W72: MÓVILES | X72: PENINSULAR | Y72: NO PENINSULAR
B73: km líneas 400 kV | C73: 3021.04359 | D73: 1450.079699 | E73: 539.0682043 | G73: 1114.437488 | I73: 240.5107043 | J73: 2612.814496 | K73: 4511.660432 | L73: 2237.079333 | N73: 2297.808447 | O73: 1351.042287 | P73: 114.9490595 | Q73: 994.4537087 | S73: 708.1121371 | T73: 175.9700702 | U73: 846.6303434 | V73: =SUM(C73:U73) -> 22215.66 | X73: =V73-Y73 -> 22215.66 | Y73: =F73+H73 -> 0
B74: km líneas 220 kV | C74: 3314.871495 | D74: 1905.185817 | E74: 399.7490202 | F74: 447.739 | G74: 1360.33626 | H74: 292.315 | I74: 332.4041061 | J74: 1528.303979 | K74: 3349.098074 | L74: 2603.125294 | N74: 968.5395974 | O74: 1433.316 | P74: 142.308 | Q74: 1189.657385 | S74: 123.86974 | T74: 318.8290202 | U74: 661.9799412 | V74: =SUM(C74:U74) -> 20371.62773 | X74: =V74-Y74 -> 19631.57373 | Y74: =F74+H74 -> 740.054
B75: km líneas <220 kV | F75: 1567.955 | H75: 1458.896 | L75: 39.44 | N75: 8.05 | O75: 12.3 | V75: =SUM(C75:U75) -> 3086.641 | X75: 59.79 | Y75: 3026.851
B76: Total km líneas | C76: =SUM(C73:C75) -> 6335.915084 | D76: 3355.265516 | E76: 938.8172245 | F76: 2015.694 | G76: 2474.773748 | H76: 1751.211 | I76: 572.9148104 | J76: 4141.118476 | K76: 7860.758506 | L76: 4879.644627 | M76: 0 | N76: 3274.398044 | O76: 2796.658287 | P76: 257.2570595 | Q76: 2184.111094 | R76: 0 | S76: 831.9818771 | T76: 494.7990904 | U76: 1508.610285 | V76: 45673.92873 | X76: =SUM(X73:X75) -> 41907.02373 | Y76: =SUM(Y73:Y75) -> 3766.905
B77: =CONCATENATE("Δ" & $B$71 & "/" & $B$71-1) -> Δ2024/2023 | C77: =(C76/C62-1)*100 -> 0.6171458217 | D77: =(D76/D62-1)*100 -> 0.0853118749 | E77: 0 | F77: 0.5601993549 | G77: 0.0009697950273 | H77: 7.988855857 | I77: 0 | J77: 0 | K77: 0 | L77: 0.8599974453 | N77: 1.989510863 | O77: 1.759152983 | P77: 0 | Q77: 0.1221207705 | S77: 0 | T77: 0 | U77: 10.8509121 | V77: =(V76/V62-1)*100 -> 1.077057977 | X77: =(X76/X62-1)*100 -> 0.832296619 | Y77: 3.882409978
B78: Posiciones 400 kV | C78: 236 | D78: 137 | E78: 55 | G78: 206 | I78: 15 | J78: 134 | K78: 268 | L78: 155 | N78: 143 | O78: 92 | P78: 9 | Q78: 124 | S78: 86 | T78: 32 | U78: 92 | V78: =SUM(C78:U78)+W78 -> 1784 | X78: =V78-F78-H78-M78-R78 -> 1784 | Y78: =F78+H78+M78+R78 -> 0
B79: Posiciones 220 kV | C79: 509 | D79: 238 | E79: 44 | F79: 129 | G79: 335 | H79: 101 | I79: 58 | J79: 155 | K79: 268 | L79: 615 | N79: 107 | O79: 250 | P79: 31 | Q79: 561 | S79: 46 | T79: 55 | U79: 150 | V79: =SUM(C79:U79)+W79 -> 3659 | W79: 7 | X79: =V79-F79-H79-M79-R79 -> 3429 | Y79: =F79+H79+M79+R79 -> 230
B80: Posiciones <220 kV | F80: 599 | H80: 620 | L80: 3 | N80: 2 | O80: 1 | V80: 1225 | X80: =V80-F80-H80-M80-R80 -> 6 | Y80: =F80+H80+M80+R80 -> 1219
B81: Total posiciones | C81: =SUM(C78:C80) -> 745 | D81: =SUM(D78:D80) -> 375 | E81: 99 | F81: 728 | G81: 541 | H81: 721 | I81: 73 | J81: 289 | K81: 536 | L81: 773 | M81: 0 | N81: 252 | O81: 343 | P81: 40 | Q81: 685 | R81: 0 | S81: 132 | T81: 87 | U81: 242 | V81: =SUM(V78:V80) -> 6668 | W81: =SUM(W78:W80) -> 7 | X81: =SUM(X78:X80) -> 5219 | Y81: 1449
B82: =CONCATENATE("Δ" & $B$71 & "/" & $B$71-1) -> Δ2024/2023 | C82: =(C81/C67-1)*100 -> 5.077574048 | D82: =(D81/D67-1)*100 -> 7.75862069 | E82: -4.807692308 | F82: 1.534170153 | G82: 2.268431002 | H82: 4.04040404 | I82: 7.352941176 | J82: 2.482269504 | K82: 5.304518664 | L82: 3.619302949 | N82: 5.439330544 | O82: 11.36363636 | P82: 8.108108108 | Q82: -2.00286123 | S82: 2.325581395 | T82: -2.247191011 | U82: 0 | V82: =(V81/V67-1)*100 -> 3.299767622 | W82: 0 | X82: 3.448959366 | Y82: 2.765957447
B83: Transformadores | C83: 15020 | D83: 5656 | E83: 1300 | F83: 3998 | G83: 8950 | H83: 4540 | I83: 2100 | J83: 1800 | K83: 6131 | L83: 11600 | N83: 3025 | O83: 6300 | P83: 600 | Q83: 11900 | S83: 3450 | T83: 1600 | U83: 5300 | V83: =SUM(C83:U83)+W83 -> 94170 | W83: 900 | X83: =V83-F83-H83-M83-R83 -> 85632 | Y83: =F83+H83+M83+R83 -> 8538
B84: =CONCATENATE("Δ" & $B$71 & "/" & $B$71-1) -> Δ2024/2023 | C84: =(C83/C69-1)*100 -> 0 | D84: =(D83/D69-1)*100 -> 11.86708861 | E84: 0 | F84: 4.168837936 | G84: 0 | H84: 9.003601441 | I84: 0 | J84: 0 | K84: 0 | L84: 0.8695652174 | N84: 0 | O84: 10.52631579 | P84: 0 | Q84: 1.709401709 | S84: 0 | T84: 0 | U84: 3.921568627 | V84: =(V83/V69-1)*100 -> 2.431065427 | W84: 0 | X84: 2.025449173 | Y84: 6.684993128

Sheet EVOLUCION_RdT (hidden)
B2: evolución líneas | C2: Andalucía | D2: Aragón | E2: Asturias | F2: Baleares | G2: C. Valenciana | H2: Canarias | I2: Cantabria | J2: Castilla-La Mancha | K2: Castilla y León | L2: Cataluña | M2: Ceuta | N2: Extremadura | O2: Galicia | P2: La Rioja | Q2: Madrid | R2: Melilla | S2: Murcia | T2: Navarra | U2: País Vasco | V2: TOTAL | W2: MÓVILES | X2: Resto nacional
A3: 2019 | B3: líneas | C3: =datos_RdT!C6 -> 6032.543084 | D3: =datos_RdT!D6 -> 3323.599516 | E3: =datos_RdT!E6 -> 961.0132245 | F3: =datos_RdT!F6 -> 1873.321 | G3: =datos_RdT!G6 -> 2407.644748 | H3: =datos_RdT!H6 -> 1549.192 | I3: =datos_RdT!I6 -> 564.6318104 | J3: =datos_RdT!J6 -> 4137.358476 | K3: =datos_RdT!K6 -> 7829.004506 | L3: =datos_RdT!L6 -> 4811.437627 | N3: =datos_RdT!N6 -> 3145.478314 | O3: =datos_RdT!O6 -> 2686.764287 | P3: =datos_RdT!P6 -> 257.2570595 | Q3: =datos_RdT!Q6 -> 2179.549094 | S3: =datos_RdT!S6 -> 831.9818771 | T3: =datos_RdT!T6 -> 494.7990904 | U3: =datos_RdT!U6 -> 1360.856285 | V3: =SUM(C3:U3) -> 44446.432 | X3: =V3-J3 -> 40309.07352
A4: 2019 | B4: posiciones | C4: =datos_RdT!C11 -> 664 | D4: =datos_RdT!D11 -> 322 | E4: =datos_RdT!E11 -> 94 | F4: =datos_RdT!F11 -> 691 | G4: =datos_RdT!G11 -> 508 | H4: =datos_RdT!H11 -> 579 | I4: =datos_RdT!I11 -> 65 | J4: =datos_RdT!J11 -> 256 | K4: =datos_RdT!K11 -> 505 | L4: =datos_RdT!L11 -> 770 | N4: =datos_RdT!N11 -> 197 | O4: =datos_RdT!O11 -> 306 | P4: =datos_RdT!P11 -> 38 | Q4: =datos_RdT!Q11 -> 636 | S4: =datos_RdT!S11 -> 119 | T4: =datos_RdT!T11 -> 78 | U4: =datos_RdT!U11 -> 231 | V4: =SUM(C4:U4)+W4 -> 6066 | W4: =datos_RdT!W11 -> 7 | X4: =V4-J4 -> 5810
A5: 2019 | B5: transformadores | C5: =datos_RdT!C13 -> 15020 | D5: =datos_RdT!D13 -> 5056 | E5: =datos_RdT!E13 -> 1300 | F5: =datos_RdT!F13 -> 3838 | G5: =datos_RdT!G13 -> 8950 | H5: =datos_RdT!H13 -> 3470 | I5: =datos_RdT!I13 -> 2100 | J5: =datos_RdT!J13 -> 1200 | K5: =datos_RdT!K13 -> 6131 | L5: =datos_RdT!L13 -> 11500 | N5: =datos_RdT!N13 -> 2800 | O5: =datos_RdT!O13 -> 5700 | P5: =datos_RdT!P13 -> 600 | Q5: =datos_RdT!Q13 -> 11100 | S5: =datos_RdT!S13 -> 3450 | T5: =datos_RdT!T13 -> 1600 | U5: =datos_RdT!U13 -> 5100 | V5: =SUM(C5:U5)+W5 -> 89815 | W5: =datos_RdT!W13 -> 900 | X5: =V5-J5 -> 88615
A6: 2019 | B6: líneas | C6: =datos_RdT!C7/100 -> 0.00813959326 | D6: =datos_RdT!D7/100 -> 0.005453518237 | E6: =datos_RdT!E7/100 -> -2.220446049e-16 | F6: =datos_RdT!F7/100 -> 0.01045286206 | G6: =datos_RdT!G7/100 -> 0.0003980576203 | H6: =datos_RdT!H7/100 -> 0.04545442276 | I6: =datos_RdT!I7/100 -> -9.992007222e-16 | J6: =datos_RdT!J7/100 -> 3.330669074e-15 | K6: =datos_RdT!K7/100 -> 0.005058281211 | L6: =datos_RdT!L7/100 -> 0.0001985247789 | N6: =datos_RdT!N7/100 -> -0.005555082534 | O6: =datos_RdT!O7/100 -> 0.001237215923 | P6: =datos_RdT!P7/100 -> -1.998401444e-15 | Q6: =datos_RdT!Q7/100 -> 6.882631107e-05 | S6: =datos_RdT!S7/100 -> 0 | T6: =datos_RdT!T7/100 -> 4.440892099e-16 | U6: =datos_RdT!U7/100 -> 0.001172694938 | V6: =datos_RdT!V7/100 -> 0.004117914278
A7: 2019 | B7: posiciones | C7: =datos_RdT!C12/100 -> 0.02786377709 | D7: =datos_RdT!D12/100 -> 0.02547770701 | E7: =datos_RdT!E12/100 -> 0 | F7: =datos_RdT!F12/100 -> 0.05175038052 | G7: =datos_RdT!G12/100 -> 0.05613305613 | H7: =datos_RdT!H12/100 -> 0.03024911032 | I7: =datos_RdT!I12/100 -> 0 | J7: =datos_RdT!J12/100 -> 0.01992031873 | K7: =datos_RdT!K12/100 -> 0.0306122449 | L7: =datos_RdT!L12/100 -> 0.006535947712 | N7: =datos_RdT!N12/100 -> 0.03141361257 | O7: =datos_RdT!O12/100 -> 0.04081632653 | P7: =datos_RdT!P12/100 -> 0 | Q7: =datos_RdT!Q12/100 -> 0.009523809524 | S7: =datos_RdT!S12/100 -> 0.01709401709 | T7: =datos_RdT!T12/100 -> 0 | U7: =datos_RdT!U12/100 -> 0 | V7: =datos_RdT!V12/100 -> 0.02622229741
A8: 2019 | B8: transformadores | C8: =datos_RdT!C14/100 -> 0.04160887656 | D8: =datos_RdT!D14/100 -> 0 | E8: =datos_RdT!E14/100 -> 0 | F8: =datos_RdT!F14/100 -> 0.1082876119 | G8: =datos_RdT!G14/100 -> 0 | H8: =datos_RdT!H14/100 -> 0.04833836858 | I8: =datos_RdT!I14/100 -> 0 | J8: =datos_RdT!J14/100 -> 0 | K8: =datos_RdT!K14/100 -> 0 | L8: =datos_RdT!L14/100 -> 0 | N8: =datos_RdT!N14/100 -> 0 | O8: =datos_RdT!O14/100 -> 0 | P8: =datos_RdT!P14/100 -> 0 | Q8: =datos_RdT!Q14/100 -> -0.1026677445 | S8: =datos_RdT!S14/100 -> 0 | T8: =datos_RdT!T14/100 -> 0 | U8: =datos_RdT!U14/100 -> 0.02 | V8: =datos_RdT!V14/100 -> -0.0003895381191
A9: 2020 | B9: líneas | C9: =datos_RdT!C20 -> 6032.765084 | D9: =datos_RdT!D20 -> 3332.192516 | E9: =datos_RdT!E20 -> 971.2792245 | F9: =datos_RdT!F20 -> 1928.78 | G9: =datos_RdT!G20 -> 2407.644748 | H9: =datos_RdT!H20 -> 1560.987 | I9: =datos_RdT!I20 -> 564.6318104 | J9: =datos_RdT!J20 -> 4141.118476 | K9: =datos_RdT!K20 -> 7829.004506 | L9: =datos_RdT!L20 -> 4823.207627 | N9: =datos_RdT!N20 -> 3155.458314 | O9: =datos_RdT!O20 -> 2691.510287 | P9: =datos_RdT!P20 -> 257.2570595 | Q9: =datos_RdT!Q20 -> 2179.605094 | S9: =datos_RdT!S20 -> 831.9818771 | T9: =datos_RdT!T20 -> 494.7990904 | U9: =datos_RdT!U20 -> 1360.856285 | V9: =SUM(C9:U9) -> 44563.079 | X9: =V9-J9 -> 40421.96052
A10: 2020 | B10: posiciones | C10: =datos_RdT!C25 -> 654 | D10: =datos_RdT!D25 -> 321 | E10: =datos_RdT!E25 -> 99 | F10: =datos_RdT!F25 -> 684 | G10: =datos_RdT!G25 -> 504 | H10: =datos_RdT!H25 -> 621 | I10: =datos_RdT!I25 -> 63 | J10: =datos_RdT!J25 -> 260 | K10: =datos_RdT!K25 -> 498 | L10: =datos_RdT!L25 -> 751 | N10: =datos_RdT!N25 -> 200 | O10: =datos_RdT!O25 -> 295 | P10: =datos_RdT!P25 -> 37 | Q10: =datos_RdT!Q25 -> 660 | S10: =datos_RdT!S25 -> 118 | T10: =datos_RdT!T25 -> 80 | U10: =datos_RdT!U25 -> 233 | V10: =SUM(C10:U10)+W10 -> 6085 | W10: =datos_RdT!W25 -> 7 | X10: =V10-J10 -> 5825
A11: 2020 | B11: transformadores | C11: =datos_RdT!C27 -> 15020 | D11: =datos_RdT!D27 -> 5056 | E11: =datos_RdT!E27 -> 1300 | F11: =datos_RdT!F27 -> 3838 | G11: =datos_RdT!G27 -> 8950 | H11: =datos_RdT!H27 -> 3630 | I11: =datos_RdT!I27 -> 2100 | J11: =datos_RdT!J27 -> 1200 | K11: =datos_RdT!K27 -> 6131 | L11: =datos_RdT!L27 -> 11500 | N11: =datos_RdT!N27 -> 2800 | O11: =datos_RdT!O27 -> 5700 | P11: =datos_RdT!P27 -> 600 | Q11: =datos_RdT!Q27 -> 11100 | S11: =datos_RdT!S27 -> 3450 | T11: =datos_RdT!T27 -> 1600 | U11: =datos_RdT!U27 -> 5100 | V11: =SUM(C11:U11)+W11 -> 89975 | W11: =datos_RdT!W27 -> 900 | X11: =V11-J11 -> 88775
A12: 2020 | B12: líneas | C12: =(C9/C3-1) -> 3.680040024e-05 | D12: =(D9/D3-1) -> 0.002585449889 | E12: =(E9/E3-1) -> 0.01068247527 | F12: =(F9/F3-1) -> 0.0296046433 | G12: 0 | H12: 0.00761364634 | I12: 0 | J12: 0.0009087924148 | K12: 0 | L12: 0.002446254303 | N12: 0.003172808394 | O12: 0.001766437057 | P12: 0 | Q12: 2.569338775e-05 | S12: 0 | T12: 0 | U12: 0 | V12: 0.002624440135
A13: 2020 | B13: posiciones | C13: =(C10/C4-1) -> -0.01506024096 | D13: =(D10/D4-1) -> -0.003105590062 | E13: 0.05319148936 | F13: -0.01013024602 | G13: -0.007874015748 | H13: 0.0725388601 | I13: -0.03076923077 | J13: 0.015625 | K13: -0.01386138614 | L13: -0.02467532468 | N13: 0.0152284264 | O13: -0.03594771242 | P13: -0.02631578947 | Q13: 0.03773584906 | S13: -0.008403361345 | T13: 0.02564102564 | U13: 0.008658008658 | V13: 0.003132212331
A14: 2020 | B14: transformadores | C14: =(C11/C5-1) -> 0 | D14: =(D11/D5-1) -> 0 | E14: 0 | F14: 0 | G14: 0 | H14: 0.04610951009 | I14: 0 | K14: 0 | L14: 0 | N14: 0 | O14: 0 | Q14: 0 | S14: 0 | T14: 0 | U14: 0 | V14: 0.001781439626
A15: 2021 | B15: líneas | C15: =datos_RdT!C34 -> 6040.417084 | D15: =datos_RdT!D34 -> 3352.405516 | E15: =datos_RdT!E34 -> 971.6172245 | F15: =datos_RdT!F34 -> 1928.78 | G15: =datos_RdT!G34 -> 2424.823748 | H15: =datos_RdT!H34 -> 1578.245 | I15: =datos_RdT!I34 -> 564.6318104 | J15: =datos_RdT!J34 -> 4141.118476 | K15: =datos_RdT!K34 -> 7860.608506 | L15: =datos_RdT!L34 -> 4823.207627 | N15: =datos_RdT!N34 -> 3210.524314 | O15: =datos_RdT!O34 -> 2747.361287 | P15: =datos_RdT!P34 -> 257.2570595 | Q15: =datos_RdT!Q34 -> 2179.605094 | S15: =datos_RdT!S34 -> 831.9818771 | T15: =datos_RdT!T34 -> 494.7990904 | U15: =datos_RdT!U34 -> 1360.936285 | V15: =SUM(C15:U15) -> 44768.32 | X15: =V15-J15 -> 40627.20152
A16: 2021 | B16: posiciones | C16: =datos_RdT!C39 -> 660 | D16: =datos_RdT!D39 -> 328 | E16: =datos_RdT!E39 -> 104 | F16: =datos_RdT!F39 -> 693 | G16: =datos_RdT!G39 -> 506 | H16: =datos_RdT!H39 -> 651 | I16: =datos_RdT!I39 -> 62 | J16: =datos_RdT!J39 -> 270 | K16: =datos_RdT!K39 -> 492 | L16: =datos_RdT!L39 -> 737 | N16: =datos_RdT!N39 -> 231 | O16: =datos_RdT!O39 -> 299 | P16: =datos_RdT!P39 -> 36 | Q16: =datos_RdT!Q39 -> 684 | S16: =datos_RdT!S39 -> 119 | T16: =datos_RdT!T39 -> 83 | U16: =datos_RdT!U39 -> 241 | V16: =SUM(C16:U16)+W16 -> 6203 | W16: =datos_RdT!W39 -> 7 | X16: =V16-J16 -> 5933
A17: 2021 | B17: transformadores | C17: =datos_RdT!C41 -> 15020 | D17: =datos_RdT!D41 -> 5056 | E17: =datos_RdT!E41 -> 1300 | F17: =datos_RdT!F41 -> 3838 | G17: =datos_RdT!G41 -> 8950 | H17: =datos_RdT!H41 -> 3880 | I17: =datos_RdT!I41 -> 2100 | J17: =datos_RdT!J41 -> 1200 | K17: =datos_RdT!K41 -> 6131 | L17: =datos_RdT!L41 -> 11500 | N17: =datos_RdT!N41 -> 3025 | O17: =datos_RdT!O41 -> 5700 | P17: =datos_RdT!P41 -> 600 | Q17: =datos_RdT!Q41 -> 11100 | S17: =datos_RdT!S41 -> 3450 | T17: =datos_RdT!T41 -> 1600 | U17: =datos_RdT!U41 -> 5100 | V17: =SUM(C17:U17)+W17 -> 90450 | W17: =datos_RdT!W41 -> 900 | X17: =V17-J17 -> 89250
A18: 2021 | B18: líneas | C18: =(C15/C9-1) -> 0.001268406758 | D18: =(D15/D9-1) -> 0.006065976051 | E18: 0.000347994677 | F18: 0 | G18: 0.007135188865 | H18: 0.01105582558 | I18: 0 | J18: 0 | K18: 0.004036783984 | L18: 0 | N18: 0.01745103073 | O18: 0.0207508031 | P18: 0 | Q18: 0 | S18: 0 | T18: 0 | U18: 5.878651618e-05 | V18: 0.004605628799
A19: 2021 | B19: posiciones | C19: =(C16/C10-1) -> 0.009174311927 | D19: =(D16/D10-1) -> 0.02180685358 | E19: 0.05050505051 | F19: 0.01315789474 | G19: 0.003968253968 | H19: 0.04830917874 | I19: -0.01587301587 | J19: 0.03846153846 | K19: -0.01204819277 | L19: -0.01864181092 | N19: 0.155 | O19: 0.01355932203 | P19: -0.02702702703 | Q19: 0.03636363636 | S19: 0.008474576271 | T19: 0.0375 | U19: 0.03433476395 | V19: 0.01939194741
A20: 2021 | B20: transformadores | C20: =(C17/C11-1) -> 0 | D20: =(D17/D11-1) -> 0 | E20: 0 | F20: 0 | G20: 0 | H20: 0.06887052342 | I20: 0 | J20: =(J17/J11-1) -> 0 | K20: 0 | L20: 0 | N20: 0.08035714286 | O20: 0 | Q20: 0 | S20: 0 | T20: 0 | U20: 0 | V20: 0.005279244235
A21: 2022 | B21: líneas | C21: =datos_RdT!C48 -> 6288.014084 | D21: =datos_RdT!D48 -> 3352.405516 | E21: =datos_RdT!E48 -> 971.6172245 | F21: =datos_RdT!F48 -> 1929.728 | G21: =datos_RdT!G48 -> 2434.749748 | H21: =datos_RdT!H48 -> 1609.196 | I21: =datos_RdT!I48 -> 572.8078104 | J21: =datos_RdT!J48 -> 4141.118476 | K21: =datos_RdT!K48 -> 7860.758506 | L21: =datos_RdT!L48 -> 4823.207627 | N21: =datos_RdT!N48 -> 3210.524314 | O21: =datos_RdT!O48 -> 2747.361287 | P21: =datos_RdT!P48 -> 257.2570595 | Q21: =datos_RdT!Q48 -> 2179.605094 | S21: =datos_RdT!S48 -> 831.9818771 | T21: =datos_RdT!T48 -> 494.7990904 | U21: =datos_RdT!U48 -> 1360.936285 | V21: =SUM(C21:U21) -> 45066.068 | X21: =V21-J21 -> 40924.94952
A22: 2022 | B22: posiciones | C22: =datos_RdT!C53 -> 680 | D22: =datos_RdT!D53 -> 334 | E22: =datos_RdT!E53 -> 104 | F22: =datos_RdT!F53 -> 701 | G22: =datos_RdT!G53 -> 517 | H22: =datos_RdT!H53 -> 683 | I22: =datos_RdT!I53 -> 65 | J22: =datos_RdT!J53 -> 279 | K22: =datos_RdT!K53 -> 498 | L22: =datos_RdT!L53 -> 738 | N22: =datos_RdT!N53 -> 238 | O22: =datos_RdT!O53 -> 300 | P22: =datos_RdT!P53 -> 36 | Q22: =datos_RdT!Q53 -> 687 | S22: =datos_RdT!S53 -> 121 | T22: =datos_RdT!T53 -> 83 | U22: =datos_RdT!U53 -> 241 | V22: =SUM(C22:U22)+W22 -> 6312 | W22: =datos_RdT!W53 -> 7 | X22: =V22-J22 -> 6033
A23: 2022 | B23: transformadores | C23: =datos_RdT!C55 -> 15020 | D23: =datos_RdT!D55 -> 5056 | E23: =datos_RdT!E55 -> 1300 | F23: =datos_RdT!F55 -> 3838 | G23: =datos_RdT!G55 -> 8950 | H23: =datos_RdT!H55 -> 4005 | I23: =datos_RdT!I55 -> 2100 | J23: =datos_RdT!J55 -> 1800 | K23: =datos_RdT!K55 -> 6131 | L23: =datos_RdT!L55 -> 11500 | N23: =datos_RdT!N55 -> 3025 | O23: =datos_RdT!O55 -> 5700 | P23: =datos_RdT!P55 -> 600 | Q23: =datos_RdT!Q55 -> 11100 | S23: =datos_RdT!S55 -> 3450 | T23: =datos_RdT!T55 -> 1600 | U23: =datos_RdT!U55 -> 5100 | V23: =SUM(C23:U23)+W23 -> 91175 | W23: =datos_RdT!W55 -> 900 | X23: =V23-J23 -> 89375
A24: 2022 | B24: líneas | C24: =(C21/C15-1) -> 0.04099005028 | D24: =(D21/D15-1) -> 0 | E24: 0 | F24: 0.0004915024005 | G24: 0.004093493396 | H24: 0.01961102364 | I24: 0.01448023269 | J24: 0 | K24: 1.908249214e-05 | L24: 0 | N24: 0 | O24: 0 | P24: 0 | Q24: 0 | S24: 0 | T24: 0 | U24: 0 | V24: 0.006650863825
A25: 2022 | B25: posiciones | C25: =(C22/C16-1) -> 0.0303030303 | D25: =(D22/D16-1) -> 0.01829268293 | E25: 0 | F25: 0.01154401154 | G25: 0.02173913043 | H25: 0.04915514593 | I25: 0.04838709677 | J25: 0.03333333333 | K25: 0.01219512195 | L25: 0.001356852103 | N25: 0.0303030303 | O25: 0.003344481605 | P25: 0 | Q25: 0.004385964912 | S25: 0.01680672269 | T25: 0 | U25: 0 | V25: 0.01757214251
A26: 2022 | B26: transformadores | C26: =(C23/C17-1) -> 0 | D26: =(D23/D17-1) -> 0 | E26: 0 | F26: 0 | G26: 0 | H26: 0.03221649485 | I26: 0 | J26: 0.5 | K26: 0 | L26: 0 | N26: 0 | O26: 0 | P26: 0 | Q26: 0 | S26: 0 | T26: 0 | U26: 0 | V26: 0.008015478165
A27: 2023 | B27: líneas | C27: =datos_RdT!C62 -> 6297.053084 | D27: =datos_RdT!D62 -> 3352.405516 | E27: =datos_RdT!E62 -> 938.8172245 | F27: =datos_RdT!F62 -> 2004.465 | G27: =datos_RdT!G62 -> 2474.749748 | H27: =datos_RdT!H62 -> 1621.659 | I27: =datos_RdT!I62 -> 572.9148104 | J27: =datos_RdT!J62 -> 4141.118476 | K27: =datos_RdT!K62 -> 7860.758506 | L27: =datos_RdT!L62 -> 4838.037627 | M27: =datos_RdT!M62 -> 0 | N27: =datos_RdT!N62 -> 3210.524314 | O27: =datos_RdT!O62 -> 2748.311287 | P27: =datos_RdT!P62 -> 257.2570595 | Q27: =datos_RdT!Q62 -> 2181.447094 | S27: =datos_RdT!S62 -> 831.9818771 | T27: =datos_RdT!T62 -> 494.7990904 | U27: =datos_RdT!U62 -> 1360.936285 | V27: 45187.236 | X27: =V27-J27 -> 41046.11752
A28: 2023 | B28: posiciones | C28: =datos_RdT!C67 -> 709 | D28: =datos_RdT!D67 -> 348 | E28: =datos_RdT!E67 -> 104 | F28: =datos_RdT!F67 -> 717 | G28: =datos_RdT!G67 -> 529 | H28: =datos_RdT!H67 -> 693 | I28: =datos_RdT!I67 -> 68 | J28: =datos_RdT!J67 -> 282 | K28: =datos_RdT!K67 -> 509 | L28: =datos_RdT!L67 -> 746 | M28: =datos_RdT!M67 -> 0 | N28: =datos_RdT!N67 -> 239 | O28: =datos_RdT!O67 -> 308 | P28: =datos_RdT!P67 -> 37 | Q28: =datos_RdT!Q67 -> 699 | S28: =datos_RdT!S67 -> 129 | T28: =datos_RdT!T67 -> 89 | U28: =datos_RdT!U67 -> 242 | V28: =SUM(C28:U28)+W28 -> 6455 | W28: =datos_RdT!W67 -> 7 | X28: =V28-J28 -> 6173
A29: 2023 | B29: transformadores | C29: =datos_RdT!C69 -> 15020 | D29: =datos_RdT!D69 -> 5056 | E29: =datos_RdT!E69 -> 1300 | F29: =datos_RdT!F69 -> 3838 | G29: =datos_RdT!G69 -> 8950 | H29: =datos_RdT!H69 -> 4165 | I29: =datos_RdT!I69 -> 2100 | J29: =datos_RdT!J69 -> 1800 | K29: =datos_RdT!K69 -> 6131 | L29: =datos_RdT!L69 -> 11500 | M29: =datos_RdT!M69 -> 0 | N29: =datos_RdT!N69 -> 3025 | O29: =datos_RdT!O69 -> 5700 | P29: =datos_RdT!P69 -> 600 | Q29: =datos_RdT!Q69 -> 11700 | S29: =datos_RdT!S69 -> 3450 | T29: =datos_RdT!T69 -> 1600 | U29: =datos_RdT!U69 -> 5100 | V29: =SUM(C29:U29)+W29 -> 91935 | W29: =datos_RdT!W69 -> 900 | X29: =V29-J29 -> 90135
A30: 2023 | B30: líneas | C30: =(C27/C21-1) -> 0.00143749678 | D30: =(D27/D21-1) -> 0 | E30: -0.03375814999 | F30: 0.03872929242 | G30: 0.01642879315 | H30: 0.007744861409 | I30: 0.0001867991289 | J30: 0 | K30: 0 | L30: 0.003074717314 | N30: 0 | O30: 0.0003457863385 | P30: 0 | Q30: 0.0008451072192 | S30: 0 | T30: -1.110223025e-16 | U30: 0 | V30: 0.00268867477
A31: 2023 | B31: posiciones | C31: =(C28/C22-1) -> 0.04264705882 | D31: =(D28/D22-1) -> 0.04191616766 | E31: 0 | F31: 0.02282453638 | G31: 0.02321083172 | H31: 0.01464128843 | I31: 0.04615384615 | J31: 0.01075268817 | K31: 0.02208835341 | L31: 0.0108401084 | N31: 0.004201680672 | O31: 0.02666666667 | P31: 0.02777777778 | Q31: 0.01746724891 | S31: 0.06611570248 | T31: 0.07228915663 | U31: 0.004149377593 | V31: 0.02265525982
A32: 2023 | B32: transformadores | C32: =(C29/C23-1) -> 0 | D32: =(D29/D23-1) -> 0 | E32: 0 | F32: 0 | G32: 0 | H32: 0.03995006242 | I32: 0 | J32: 0 | K32: 0 | L32: 0 | N32: 0 | O32: 0 | P32: 0 | Q32: 0.05405405405 | S32: 0 | T32: 0 | U32: 0 | V32: 0.008335618316
A33: 2024 | B33: líneas | C33: =datos_RdT!C76 -> 6335.915084 | D33: =datos_RdT!D76 -> 3355.265516 | E33: =datos_RdT!E76 -> 938.8172245 | F33: =datos_RdT!F76 -> 2015.694 | G33: =datos_RdT!G76 -> 2474.773748 | H33: =datos_RdT!H76 -> 1751.211 | I33: =datos_RdT!I76 -> 572.9148104 | J33: =datos_RdT!J76 -> 4141.118476 | K33: =datos_RdT!K76 -> 7860.758506 | L33: =datos_RdT!L76 -> 4879.644627 | N33: =datos_RdT!N76 -> 3274.398044 | O33: =datos_RdT!O76 -> 2796.658287 | P33: =datos_RdT!P76 -> 257.2570595 | Q33: =datos_RdT!Q76 -> 2184.111094 | S33: =datos_RdT!S76 -> 831.9818771 | T33: =datos_RdT!T76 -> 494.7990904 | U33: =datos_RdT!U76 -> 1508.610285 | V33: =datos_RdT!V76 -> 45673.92873 | X33: =V33-J33 -> 41532.81025
A34: 2024 | B34: posiciones | C34: =datos_RdT!C81 -> 745 | D34: =datos_RdT!D81 -> 375 | E34: =datos_RdT!E81 -> 99 | F34: =datos_RdT!F81 -> 728 | G34: =datos_RdT!G81 -> 541 | H34: =datos_RdT!H81 -> 721 | I34: =datos_RdT!I81 -> 73 | J34: =datos_RdT!J81 -> 289 | K34: =datos_RdT!K81 -> 536 | L34: =datos_RdT!L81 -> 773 | N34: =datos_RdT!N81 -> 252 | O34: =datos_RdT!O81 -> 343 | P34: =datos_RdT!P81 -> 40 | Q34: =datos_RdT!Q81 -> 685 | S34: =datos_RdT!S81 -> 132 | T34: =datos_RdT!T81 -> 87 | U34: =datos_RdT!U81 -> 242 | V34: =datos_RdT!V81 -> 6668 | W34: =datos_RdT!W81 -> 7 | X34: =V34-J34 -> 6379
A35: 2024 | B35: transformadores | C35: =datos_RdT!C83 -> 15020 | D35: =datos_RdT!D83 -> 5656 | E35: =datos_RdT!E83 -> 1300 | F35: =datos_RdT!F83 -> 3998 | G35: =datos_RdT!G83 -> 8950 | H35: =datos_RdT!H83 -> 4540 | I35: =datos_RdT!I83 -> 2100 | J35: =datos_RdT!J83 -> 1800 | K35: =datos_RdT!K83 -> 6131 | L35: =datos_RdT!L83 -> 11600 | N35: =datos_RdT!N83 -> 3025 | O35: =datos_RdT!O83 -> 6300 | P35: =datos_RdT!P83 -> 600 | Q35: =datos_RdT!Q83 -> 11900 | S35: =datos_RdT!S83 -> 3450 | T35: =datos_RdT!T83 -> 1600 | U35: =datos_RdT!U83 -> 5300 | V35: =datos_RdT!V83 -> 94170 | W35: =datos_RdT!W83 -> 900 | X35: =V35-J35 -> 92370
A36: 2024 | B36: líneas | C36: =(C33/C27-1) -> 0.006171458217 | D36: =(D33/D27-1) -> 0.000853118749 | E36: 0 | F36: 0.005601993549 | G36: 9.697950273e-06 | H36: 0.07988855857 | I36: 0 | J36: 0 | K36: 0 | L36: 0.008599974453 | N36: 0.01989510863 | O36: 0.01759152983 | P36: 0 | Q36: 0.001221207705 | S36: 0 | T36: 0 | U36: 0.108509121 | V36: 0.01077057977
A37: 2024 | B37: posiciones | C37: =(C34/C28-1) -> 0.05077574048 | D37: =(D34/D28-1) -> 0.0775862069 | E37: -0.04807692308 | F37: 0.01534170153 | G37: 0.02268431002 | H37: 0.0404040404 | I37: 0.07352941176 | J37: 0.02482269504 | K37: 0.05304518664 | L37: 0.03619302949 | N37: 0.05439330544 | O37: 0.1136363636 | P37: 0.08108108108 | Q37: -0.0200286123 | S37: 0.02325581395 | T37: -0.02247191011 | U37: 0 | V37: 0.03299767622
A38: 2024 | B38: transformadores | C38: =(C35/C29-1) -> 0 | D38: =(D35/D29-1) -> 0.1186708861 | E38: 0 | F38: 0.04168837936 | G38: 0 | H38: 0.09003601441 | I38: 0 | J38: 0 | K38: 0 | L38: 0.008695652174 | N38: 0 | O38: 0.1052631579 | P38: 0 | Q38: 0.01709401709 | S38: 0 | T38: 0 | U38: 0.03921568627 | V38: 0.02431065427

Sheet Año (hidden)
B2: 2019
B3: 2020
B4: 2021
B5: 2022
B6: 2023
B7: 2024
